bitfinex/quotes_BTCUSD_20230109
["timestamp","ask_amount","ask_price","bid_price","bid_amount"]
[1673265660965,0.17865225,17258.0,17257.0,2.04800893]
[1673265661480,0.17865225,17258.0,17257.0,2.22182383]
[1673265661747,0.17865225,17258.0,17257.0,2.04800893]
[1673265664219,0.17865225,17258.0,17257.0,1.56417187]
[1673265665996,0.17865225,17258.0,17257.0,1.56405982]
[1673265666213,0.17865225,17258.0,17257.0,2.04809815]
[1673265666470,0.25812185,17258.0,17257.0,1.56179857]
[1673265667722,0.25812185,17258.0,17257.0,2.0457041]
[1673265667981,0.25812185,17258.0,17257.0,2.4082541]
[1673265668484,0.25812185,17258.0,17257.0,1.56179857]
[1673265670561,0.25812185,17258.0,17257.0,1.92434857]
[1673265670810,0.25812185,17258.0,17257.0,1.56179857]
[1673265671056,0.25812185,17258.0,17257.0,1.92434857]
[1673265671295,0.25812185,17258.0,17257.0,1.56179857]
[1673265671547,0.25812185,17258.0,17257.0,1.92434857]
[1673265671827,0.25812185,17258.0,17257.0,1.67282657]
[1673265672029,0.25812185,17258.0,17257.0,1.56179857]
[1673265672508,0.25812185,17258.0,17257.0,2.408337]
[1673265672761,0.25812185,17258.0,17257.0,1.92434857]
[1673265673007,0.25812185,17258.0,17257.0,2.045787]
[1673265673251,0.25812185,17258.0,17257.0,3.1615803]
[1673265673490,0.25812185,17258.0,17257.0,2.7990303]
[1673265673727,0.25812185,17258.0,17257.0,10.2990303]
[1673265673951,0.25812185,17258.0,17257.0,10.6615803]
[1673265676827,0.25812185,17258.0,17257.0,10.487811]
[1673265677862,0.25812185,17258.0,17257.0,2.987811]
[1673265678108,0.25812185,17258.0,17257.0,2.625261]
[1673265678625,0.25812185,17258.0,17257.0,2.987811]
[1673265679374,0.25812185,17258.0,17257.0,2.98583755]
[1673265680350,0.25812185,17258.0,17257.0,2.98386395]
[1673265681360,0.25812185,17258.0,17257.0,2.98188991]
[1673265681612,0.25812185,17258.0,17257.0,2.61933991]
[1673265682128,0.25812185,17258.0,17257.0,2.98141317]
[1673265682375,0.25812185,17258.0,17257.0,2.97943924]
[1673265683314,0.25812185,17258.0,17257.0,2.97746569]
[1673265683558,0.0934696,17258.0,17257.0,2.97746569]
[1673265684568,0.0934696,17258.0,17257.0,2.97549216]
[1673265685049,0.0934696,17258.0,17257.0,2.61294216]
[1673265685295,0.0934696,17258.0,17257.0,2.12943047]
[1673265685535,0.0934696,17258.0,17257.0,2.97373088]
[1673265685789,0.0934696,17258.0,17257.0,2.97387834]
[1673265686291,0.0934696,17258.0,17257.0,2.97190487]
[1673265687502,0.0934696,17258.0,17257.0,2.96993139]
[1673265688327,0.0934696,17258.0,17257.0,3.14172719]
[1673265689346,0.0934696,17258.0,17257.0,3.13975335]
[1673265690334,0.0934696,17258.0,17257.0,2.77522951]
[1673265690579,0.0934696,17258.0,17257.0,10.27522951]
[1673265690825,0.0934696,17258.0,17257.0,10.63777951]
[1673265693364,0.0934696,17258.0,17257.0,10.89809085]
[1673265693614,0.0934696,17258.0,17257.0,11.47559439]
[1673265694870,0.0934696,17258.0,17257.0,12.20997395]
[1673265697624,0.0934696,17258.0,17257.0,12.21018035]
[1673265698121,0.0934696,17258.0,17257.0,11.47559439]
[1673265700864,0.0934696,17258.0,17257.0,12.21595276]
[1673265701140,0.0934696,17258.0,17257.0,11.47559439]
[1673265701889,0.0934696,17258.0,17257.0,11.21528305]
[1673265702598,0.0934696,17258.0,17257.0,11.47559439]
[1673265702835,0.0934696,17258.0,17257.0,10.89612039]
[1673265703345,0.0934696,17258.0,17257.0,10.63580905]
[1673265705319,0.0934696,17258.0,17257.0,10.89612039]
[1673265706329,0.0934696,17258.0,17257.0,11.63591016]
[1673265706818,0.0934696,17258.0,17257.0,10.89612039]
[1673265707316,0.0934696,17258.0,17257.0,10.63580905]
[1673265711649,0.0934696,17258.0,17257.0,3.13580905]
[1673265711885,0.0934696,17258.0,17257.0,2.77325905]
[1673265712146,0.26680552,17258.0,17257.0,2.11561837]
[1673265712417,0.26680552,17258.0,17257.0,2.47816837]
[1673265712900,0.52657164,17258.0,17257.0,2.47816837]
[1673265713407,0.52657164,17258.0,17257.0,2.47631377]
[1673265713685,0.26680552,17258.0,17257.0,2.47631377]
[1673265713927,0.52657164,17258.0,17257.0,2.47631377]
[1673265714453,0.52657164,17258.0,17257.0,2.47445922]
[1673265714820,0.26680552,17258.0,17257.0,2.47445922]
[1673265715163,0.52657164,17258.0,17257.0,2.47445922]
[1673265715421,0.26680552,17258.0,17257.0,2.472605]
[1673265716429,0.26680552,17258.0,17257.0,2.47075627]
[1673265717423,0.26680552,17258.0,17257.0,2.10635183]
[1673265717940,0.0934696,17258.0,17257.0,2.46890183]
[1673265718190,0.0934696,17258.0,17257.0,2.95230761]
[1673265718440,0.0934696,17258.0,17257.0,2.95045312]
[1673265719412,0.0934696,17258.0,17257.0,2.58604904]
[1673265719666,0.0934696,17258.0,17257.0,10.25981834]
[1673265719913,0.0934696,17258.0,17257.0,10.88267968]
[1673265720161,0.0934696,17258.0,17257.0,11.25909819]
[1673265720406,0.0934696,17258.0,17257.0,10.88082787]
[1673265720656,0.0934696,17258.0,17257.0,10.51827787]
[1673265720902,0.0934696,17258.0,17257.0,11.61979543]
[1673265721145,0.0934696,17258.0,17257.0,10.62930587]
[1673265721398,0.0934696,17258.0,17257.0,10.36899453]
[1673265721636,0.0934696,17258.0,17257.0,10.62051653]
[1673265721888,0.0934696,17258.0,17257.0,10.25796653]
[1673265722137,0.0934696,17258.0,17257.0,10.88082787]
[1673265722377,0.0934696,17258.0,17257.0,10.36899453]
[1673265722864,0.0934696,17258.0,17257.0,10.25796653]
[1673265723107,0.0934696,17258.0,17257.0,10.62051653]
[1673265723402,0.0934696,17258.0,17257.0,10.51827787]
[1673265723662,0.0934696,17258.0,17257.0,10.62051653]
[1673265723918,0.0934696,17258.0,17257.0,10.25796653]
[1673265724160,0.0934696,17258.0,17257.0,10.62051653]
[1673265724650,0.0934696,17258.0,17257.0,10.25796653]
[1673265724912,0.0934696,17258.0,17257.0,10.62051653]
[1673265725422,0.0934696,17258.0,17257.0,2.75612205]
[1673265725665,0.0934696,17258.0,17257.0,2.27271627]
[1673265725916,0.0934696,17258.0,17257.0,2.75616217]
[1673265726165,0.0934696,17258.0,17257.0,2.63526627]
[1673265726412,0.0934696,17258.0,17257.0,2.09710182]
[1673265726913,0.0934696,17258.0,17257.0,2.45965182]
[1673265727159,0.0934696,17258.0,17257.0,2.09710182]
[1673265727405,0.0934696,17258.0,17257.0,2.09525649]
[1673265727656,0.0934696,17258.0,17257.0,2.45780649]
[1673265730163,0.0934696,17258.0,17257.0,2.09525649]
[1673265730417,0.0934696,17258.0,17257.0,2.45780649]
[1673265730944,0.0934696,17258.0,17257.0,2.57869953]
[1673265731191,0.0934696,17258.0,17257.0,2.45780649]
[1673265734717,0.0934696,17258.0,17257.0,3.11493835]
[1673265734968,0.0934696,17258.0,17257.0,3.11493834]
[1673265735228,0.0934696,17258.0,17257.0,3.11493525]
[1673265736229,0.0934696,17258.0,17257.0,2.75238525]
[1673265736474,0.0934696,17258.0,17257.0,10.25238525]
[1673265736727,0.0934696,17258.0,17257.0,10.61493525]
[1673265737477,0.0934696,17258.0,17257.0,3.11493525]
[1673265737739,0.0934696,17258.0,17257.0,2.75238525]
[1673265738227,0.0934696,17258.0,17257.0,3.11493525]
[1673265742073,0.0934696,17258.0,17257.0,2.26902579]
[1673265742318,0.0934696,17258.0,17257.0,3.76452489]
[1673265742566,0.0934696,17258.0,17257.0,4.12707489]
[1673265742815,0.0934696,17258.0,17257.0,3.37482101]
[1673265743065,0.0934696,17258.0,17257.0,4.12733854]
[1673265743340,0.0934696,17258.0,17257.0,4.1274533]
[1673265744108,0.0934696,17258.0,17257.0,4.7069273]
[1673265745613,0.0934696,17258.0,17257.0,4.3443773]
[1673265745850,0.0934696,17258.0,17257.0,12.2069273]
[1673265746381,0.0934696,17258.0,17257.0,11.8443773]
[1673265746633,0.0934696,17258.0,17257.0,12.2069273]
[1673265747351,0.0934696,17258.0,17257.0,11.8443773]
[1673265747607,0.0934696,17258.0,17257.0,12.2069273]
[1673265748094,0.0934696,17258.0,17257.0,11.8443773]
[1673265748341,0.0934696,17258.0,17257.0,12.2069273]
[1673265748564,0.0934696,17258.0,17257.0,11.8443773]
[1673265748838,0.0934696,17258.0,17257.0,12.2069273]
[1673265749092,0.0934696,17258.0,17257.0,11.8443773]
[1673265749340,0.0934696,17258.0,17257.0,12.2069273]
[1673265749592,0.0934696,17258.0,17257.0,11.8443773]
[1673265749839,0.0934696,17258.0,17257.0,12.2069273]
[1673265750083,0.0934696,17258.0,17257.0,11.8443773]
[1673265750337,0.0934696,17258.0,17257.0,12.2069273]
[1673265750587,0.0934696,17258.0,17257.0,11.8443773]
[1673265750834,0.0934696,17258.0,17257.0,12.2069273]
[1673265751090,0.0934696,17258.0,17257.0,11.8443773]
[1673265751335,0.0934696,17258.0,17257.0,12.2069273]
[1673265751819,0.0934696,17258.0,17257.0,11.8443773]
[1673265752061,0.0934696,17258.0,17257.0,12.2069273]
[1673265752792,0.0934696,17258.0,17257.0,11.9554053]
[1673265753284,1e-08,17258.0,17257.0,12.01810141]
[1673265753595,1e-08,17258.0,17257.0,12.20699388]
[1673265753830,1e-08,17258.0,17257.0,12.55448729]
[1673265754080,1e-08,17258.0,17257.0,12.20699388]
[1673265754315,1e-08,17258.0,17257.0,12.38065141]
[1673265754564,1e-08,17258.0,17257.0,12.19192798]
[1673265754806,1e-08,17258.0,17257.0,12.20698457]
[1673265755062,1e-08,17258.0,17257.0,11.52099351]
[1673265755790,1e-08,17258.0,17257.0,11.15844351]
[1673265756032,1e-08,17258.0,17257.0,11.52099351]
[1673265756282,1e-08,17258.0,17257.0,11.15844351]
[1673265756535,1e-08,17258.0,17257.0,11.52099351]
[1673265756794,1e-08,17258.0,17257.0,11.15844351]
[1673265757042,1e-08,17258.0,17257.0,11.52099351]
[1673265757310,1e-08,17258.0,17257.0,11.33211035]
[1673265757556,1e-08,17258.0,17257.0,11.86851023]
[1673265757810,1e-08,17258.0,17257.0,11.69466035]
[1673265758328,1e-08,17258.0,17257.0,11.33211035]
[1673265758568,1e-08,17258.0,17257.0,11.69466035]
[1673265758815,1e-08,17258.0,17257.0,11.33211035]
[1673265759056,1e-08,17258.0,17257.0,11.69466035]
[1673265759555,1e-08,17258.0,17257.0,11.69433078]
[1673265759811,1e-08,17258.0,17257.0,11.33178078]
[1673265760060,1e-08,17258.0,17257.0,11.69433078]
[1673265760301,1e-08,17258.0,17257.0,11.33178078]
[1673265760518,1e-08,17258.0,17257.0,11.69433078]
[1673265760773,1e-08,17258.0,17257.0,11.33178078]
[1673265761034,1e-08,17258.0,17257.0,11.69433078]
[1673265761279,1e-08,17258.0,17257.0,11.44280878]
[1673265761519,1e-08,17258.0,17257.0,11.33178078]
[1673265761770,1e-08,17258.0,17257.0,11.69433078]
[1673265762496,1e-08,17258.0,17257.0,11.52067761]
[1673265762995,1e-08,17258.0,17257.0,11.33178078]
[1673265763255,1e-08,17258.0,17257.0,11.69433078]
[1673265763538,1e-08,17258.0,17257.0,11.33178078]
[1673265763802,1e-08,17258.0,17257.0,11.69433078]
[1673265764319,1e-08,17258.0,17257.0,11.33178078]
[1673265764575,1e-08,17258.0,17257.0,11.78130621]
[1673265765048,1e-08,17258.0,17257.0,11.69433078]
[1673265765816,1e-08,17258.0,17257.0,11.33178078]
[1673265766034,1e-08,17258.0,17257.0,11.69433078]
[1673265766295,1e-08,17258.0,17257.0,11.33178078]
[1673265766550,1e-08,17258.0,17257.0,11.69433078]
[1673265766801,1e-08,17258.0,17257.0,11.44280878]
[1673265767050,1e-08,17258.0,17257.0,11.33178078]
[1673265767311,1e-08,17258.0,17257.0,11.86828879]
[1673265768301,1e-08,17258.0,17257.0,12.1290236]
[1673265768550,1e-08,17258.0,17257.0,11.69475425]
[1673265771577,1e-08,17258.0,17257.0,11.69463949]
[1673265772587,1e-08,17258.0,17257.0,11.52098519]
[1673265774883,1e-08,17258.0,17257.0,11.69463949]
[1673265775129,1e-08,17258.0,17257.0,11.52099647]
[1673265775378,1e-08,17258.0,17257.0,11.69463949]
[1673265775621,1e-08,17258.0,17257.0,11.52099818]
[1673265776635,1e-08,17258.0,17257.0,11.69463949]
[1673265776897,1e-08,17258.0,17257.0,11.86850321]
[1673265777632,1e-08,17258.0,17257.0,11.69463949]
[1673265782076,0.78033282,17260.0,17258.0,7.122e-05]
[1673265782327,0.78033282,17260.0,17259.0,0.111014]
[1673265782574,0.78033282,17260.0,17259.0,0.4]
[1673265783074,0.17387345,17260.0,17259.0,0.4]
[1673265783561,0.17587345,17260.0,17259.0,0.501]
[1673265783822,0.43563957,17260.0,17259.0,0.501]
[1673265784069,0.17587345,17260.0,17259.0,0.501]
[1673265784320,0.43563957,17260.0,17259.0,0.501]
[1673265784819,0.17587345,17260.0,17259.0,0.50111474]
[1673265785813,0.17587345,17260.0,17259.0,0.501]
[1673265786050,0.00253753,17260.0,17259.0,1.46479998]
[1673265786304,0.00253753,17260.0,17259.0,2.04420698]
[1673265787035,0.17587345,17260.0,17259.0,1.8703131]
[1673265787593,0.17587345,17260.0,17259.0,1.20393067]
[1673265790768,0.43563957,17260.0,17259.0,1.20393067]
[1673265791281,0.78231923,17260.0,17259.0,1.20393067]
[1673265791751,0.43563957,17260.0,17259.0,1.20393067]
[1673265793274,0.60898331,17260.0,17259.0,1.20393067]
[1673265793812,0.43572233,17260.0,17259.0,1.20393067]
[1673265794032,0.78240199,17260.0,17259.0,1.20393067]
[1673265794532,0.43572233,17260.0,17259.0,1.20393067]
[1673265794778,0.17595621,17260.0,17259.0,1.20393067]
[1673265798771,0.17595621,17260.0,17259.0,1.78333767]
[1673265803565,0.43572233,17260.0,17259.0,0.501]
[1673265803811,1.55090731,17260.0,17259.0,0.501]
[1673265804322,1.18835731,17260.0,17259.0,0.501]
[1673265806289,1.94019869,17260.0,17259.0,0.101]
[1673265806536,2.30274869,17260.0,17259.0,0.101]
[1673265806784,2.41897122,17260.0,17259.0,0.101]
[1673265807029,2.05642122,17260.0,17259.0,0.101]
[1673265807516,1.94019869,17260.0,17259.0,0.101]
[1673265808760,1.93519869,17260.0,17259.0,0.101]
[1673265809005,2.55782203,17260.0,17259.0,0.101]
[1673265809492,2.12558853,17260.0,17259.0,0.101]
[1673265809755,1.76303853,17260.0,17259.0,0.101]
[1673265810329,2.19527203,17260.0,17259.0,0.101]
[1673265810843,2.19527203,17260.0,17259.0,0.096]
[1673265811103,1.76303853,17260.0,17259.0,0.096]
[1673265811347,2.19524509,17260.0,17259.0,0.096]
[1673265811614,1.76301159,17260.0,17259.0,0.096]
[1673265812124,1.93519869,17260.0,17259.0,0.096]
[1673265812399,2.19520579,17260.0,17259.0,0.096]
[1673265812658,1.93519869,17260.0,17259.0,0.096]
[1673265812899,2.0511851,17260.0,17259.0,0.096]
[1673265813653,1.93519869,17260.0,17259.0,0.096]
[1673265813936,1.93519869,17260.0,17259.0,0.09593322]
[1673265814623,2.71397845,17260.0,17259.0,0.09593322]
[1673265814870,2.36976126,17260.0,17259.0,0.09593322]
[1673265816057,2.06976126,17260.0,17259.0,0.09593322]
[1673265816859,2.4163271,17260.0,17259.0,0.09593322]
[1673265817620,2.7163271,17260.0,17259.0,0.09593322]
[1673265819647,2.3537771,17260.0,17259.0,0.09593322]
[1673265819896,2.0537771,17260.0,17259.0,0.09593322]
[1673265820923,2.3537771,17260.0,17259.0,0.09593322]
[1673265822687,1.93754734,17260.0,17259.0,0.09593322]
[1673265823218,1.7651718,17260.0,17259.0,0.09593322]
[1673265824153,1.93754734,17260.0,17259.0,0.09593322]
[1673265824427,2.06516147,17260.0,17259.0,0.09593322]
[1673265824930,2.19739497,17260.0,17259.0,0.09593322]
[1673265825166,1.76516147,17260.0,17259.0,0.09593322]
[1673265825428,2.06516147,17260.0,17259.0,0.09593322]
[1673265825670,2.23754734,17260.0,17259.0,0.09593322]
[1673265825914,1.93754734,17260.0,17259.0,0.09593322]
[1673265826759,2.35493653,17260.0,17259.0,0.09593322]
[1673265827091,2.41748653,17260.0,17259.0,0.09593322]
[1673265827302,2.71748684,17260.0,17259.0,0.09593322]
[1673265827567,2.67110852,17260.0,17259.0,0.09593322]
[1673265828059,2.30855852,17260.0,17259.0,0.09593322]
[1673265828327,2.26842915,17260.0,17259.0,0.09593322]
[1673265828601,1.83619593,17260.0,17259.0,0.09593322]
[1673265829090,2.19874593,17260.0,17259.0,0.09593322]
[1673265829453,1.83619593,17260.0,17259.0,0.09593322]
[1673265831208,1.08350735,17260.0,17259.0,0.09593322]
[1673265831713,0.82363644,17260.0,17259.0,0.09593322]
[1673265833195,1.08350735,17260.0,17259.0,0.09593322]
[1673265834025,0.82363644,17260.0,17259.0,0.09593322]
[1673265835316,1.18618644,17260.0,17259.0,0.09593322]
[1673265835547,1.44605735,17260.0,17259.0,0.09593322]
[1673265835875,1.08350735,17260.0,17259.0,0.09593322]
[1673265837122,2.30944719,17260.0,17259.0,0.09593322]
[1673265837343,2.49874593,17260.0,17259.0,0.09593322]
[1673265837602,2.49874593,17260.0,17259.0,0.09586801]
[1673265837603,2.67110852,17260.0,17259.0,0.09586801]
[1673265837866,2.13954913,17260.0,17259.0,0.09586801]
[1673265838568,2.00855852,17260.0,17259.0,0.09586801]
[1673265838777,1.83628354,17260.0,17259.0,0.09586801]
[1673265839684,1.25690954,17260.0,17259.0,0.09586801]
[1673265840347,1.08368667,17260.0,17259.0,0.09586801]
[1673265840551,1.08368728,17260.0,17259.0,0.09586801]
[1673265840773,1.79280312,17260.0,17259.0,0.09586801]
[1673265840991,1.44623728,17260.0,17259.0,0.09586801]
[1673265841281,1.43025312,17260.0,17259.0,0.09586801]
[1673265841506,1.25690954,17260.0,17259.0,0.09586801]
[1673265844028,1.08376187,17260.0,17259.0,0.09586801]
[1673265844483,0.50438787,17260.0,17259.0,0.09586801]
[1673265846796,0.85095371,17260.0,17259.0,0.09586801]
[1673265847226,0.85093224,17260.0,17259.0,0.09586801]
[1673265847590,0.5043664,17260.0,17259.0,0.09586801]
[1673265848979,0.85093224,17260.0,17259.0,0.09586801]
[1673265849226,0.5043664,17260.0,17259.0,0.09586801]
[1673265852395,0.67753554,17260.0,17259.0,0.09586801]
[1673265852591,0.85092242,17260.0,17259.0,0.09586801]
[1673265852896,0.50435658,17260.0,17259.0,0.09586801]
[1673265853036,0.67753554,17260.0,17259.0,0.09586801]
[1673265853895,0.50434461,17260.0,17259.0,0.09586801]
[1673265854600,0.67753554,17260.0,17259.0,0.09586801]
[1673265854847,0.50433509,17260.0,17259.0,0.09586801]
[1673265855076,0.67753554,17260.0,17259.0,0.09586801]
[1673265855553,1.25690954,17260.0,17259.0,0.09586801]
[1673265855792,2.00855852,17260.0,17259.0,0.09586801]
[1673265856030,2.81139696,17260.0,17259.0,0.09586801]
[1673265856279,2.51139696,17260.0,17259.0,0.09586801]
[1673265856602,2.14884243,17260.0,17259.0,0.09586801]
[1673265856815,2.00855852,17260.0,17259.0,0.09586801]
[1673265857035,2.14884484,17260.0,17259.0,0.09586801]
[1673265858613,2.44884484,17260.0,17259.0,0.09586801]
[1673265858858,2.14884484,17260.0,17259.0,0.09586801]
[1673265859871,2.44884484,17260.0,17259.0,0.09586801]
[1673265860420,2.14884484,17260.0,17259.0,0.09586801]
[1673265863053,2.44884484,17260.0,17259.0,0.09586801]
[1673265863313,2.44884484,17260.0,17259.0,0.09576086]
[1673265864139,2.14884484,17260.0,17259.0,0.09576086]
[1673265864348,2.51139484,17260.0,17259.0,0.09576086]
[1673265864574,2.37110852,17260.0,17259.0,0.09576086]
[1673265864827,2.00855852,17260.0,17259.0,0.09576086]
[1673265865079,2.1480222,17260.0,17259.0,0.09576086]
[1673265867267,2.00855852,17260.0,17259.0,0.09576086]
[1673265867517,2.14803075,17260.0,17259.0,0.09576086]
[1673265868041,2.51094675,17260.0,17259.0,0.09576086]
[1673265868299,2.46401491,17260.0,17259.0,0.09576086]
[1673265868545,2.10146491,17260.0,17259.0,0.09576086]
[1673265871506,2.46401491,17260.0,17259.0,0.09576086]
[1673265872044,2.10146491,17260.0,17259.0,0.09576086]
[1673265873779,2.16401491,17260.0,17259.0,0.09576086]
[1673265874241,2.14836587,17260.0,17259.0,0.09576086]
[1673265875731,2.46401491,17260.0,17259.0,0.09576086]
[1673265876393,2.10146491,17260.0,17259.0,0.09576086]
[1673265876933,1.66923141,17260.0,17259.0,0.09576086]
[1673265877433,2.1028408,17260.0,17259.0,0.09576086]
[1673265882625,1.8028408,17260.0,17259.0,0.09576086]
[1673265882870,2.14971019,17260.0,17259.0,0.09576086]
[1673265883843,1.8028408,17260.0,17259.0,0.09576086]
[1673265884056,2.1028408,17260.0,17259.0,0.09576086]
[1673265886098,2.1028408,17260.0,17259.0,0.09566844]
[1673265886354,2.51229283,17260.0,17259.0,0.09566844]
[1673265886570,2.51229283,17260.0,17259.0,7.59566844]
[1673265886788,2.14974283,17260.0,17259.0,7.59566844]
[1673265887587,2.14974283,17260.0,17259.0,0.09566844]
[1673265887893,2.51232115,17260.0,17259.0,0.09566844]
[1673265888136,2.1653908,17260.0,17259.0,0.09566844]
[1673265888357,1.8028408,17260.0,17259.0,0.09566844]
[1673265889677,2.1028408,17260.0,17259.0,0.09566844]
[1673265890204,1.8028408,17260.0,17259.0,0.09566844]
[1673265891014,2.14984275,17260.0,17259.0,0.09566844]
[1673265891259,1.8028408,17260.0,17259.0,0.09566844]
[1673265891749,2.14984255,17260.0,17259.0,0.09566844]
[1673265891982,1.8028408,17260.0,17259.0,0.09566844]
[1673265892989,2.14984997,17260.0,17259.0,0.09566844]
[1673265895188,1.8028408,17260.0,17259.0,0.09566844]
[1673265896875,2.1653908,17260.0,17259.0,0.09566844]
[1673265897392,1.8028408,17260.0,17259.0,0.09566844]
[1673265901511,1.66923141,17260.0,17259.0,0.09148244]
[1673265902799,1.80305711,17260.0,17259.0,0.09148244]
[1673265903048,1.66923141,17260.0,17259.0,0.09148244]
[1673265903296,2.10305799,17260.0,17259.0,0.09148244]
[1673265903555,1.80305799,17260.0,17259.0,0.09148244]
[1673265904334,1.36923141,17260.0,17259.0,0.09148244]
[1673265904582,1.66923141,17260.0,17259.0,0.09148244]
[1673265907404,1.80308948,17260.0,17259.0,0.09148244]
[1673265907872,2.15019578,17260.0,17259.0,0.09148244]
[1673265909903,2.15009046,17260.0,17259.0,0.09148244]
[1673265910130,2.15009046,17260.0,17259.0,0.49148244]
[1673265910379,2.14420311,17260.0,17259.0,0.49148244]
[1673265910622,2.14419285,17260.0,17259.0,0.49148244]
[1673265911118,2.14419245,17260.0,17259.0,0.49148244]
[1673265911370,2.14419409,17260.0,17259.0,0.49148244]
[1673265911892,1.83706513,17260.0,17259.0,0.49148244]
[1673265912385,1.25769113,17260.0,17259.0,0.49148244]
[1673265914565,1.6915492,17260.0,17259.0,0.49148244]
[1673265914803,1.43124423,17260.0,17259.0,0.49148244]
[1673265915053,1.56430566,17260.0,17259.0,0.49148244]
[1673265915303,1.69149616,17260.0,17259.0,0.49148244]
[1673265915538,1.25763809,17260.0,17259.0,0.49148244]
[1673265918764,1.69149616,17260.0,17259.0,0.49148244]
[1673265919011,1.25763809,17260.0,17259.0,0.49148244]
[1673265921250,1.56477947,17260.0,17259.0,0.49148244]
[1673265921490,1.92732947,17260.0,17259.0,0.49148244]
[1673265921990,2.14415347,17260.0,17259.0,0.49148244]
[1673265922727,2.09704717,17260.0,17259.0,0.09148244]
[1673265922970,2.0257391,17260.0,17259.0,0.09148244]
[1673265925592,1.6631891,17260.0,17259.0,0.09148244]
[1673265925840,2.0257391,17260.0,17259.0,0.09148244]
[1673265926335,2.0207391,17260.0,17259.0,0.09148244]
[1673265927364,1.6581891,17260.0,17259.0,0.09148244]
[1673265927861,2.2375631,17260.0,17259.0,0.09148244]
[1673265928110,2.6001131,17260.0,17259.0,0.09148244]
[1673265930145,2.0207391,17260.0,17259.0,0.09148244]
[1673265931127,2.6001131,17260.0,17259.0,0.09148244]
[1673265931626,2.6000131,17260.0,17259.0,0.09148244]
[1673265932906,2.0206391,17260.0,17259.0,0.09148244]
[1673265933164,2.45429045,17260.0,17259.0,0.09148244]
[1673265933679,2.09174045,17260.0,17259.0,0.09148244]
[1673265937378,2.09174648,17260.0,17259.0,0.09148244]
[1673265938573,2.09174648,17260.0,17259.0,0.09159174]
[1673265938853,1.79174648,17260.0,17259.0,0.09148244]
[1673265939338,2.13866782,17260.0,17259.0,0.09148244]
[1673265941862,2.09174648,17260.0,17259.0,0.09148244]
[1673265945849,1.79174648,17260.0,17259.0,0.09148244]
[1673265946096,2.09174648,17260.0,17259.0,0.09148244]
[1673265952885,2.45429648,17260.0,17259.0,0.09141207]
[1673265953098,2.0206391,17260.0,17259.0,0.09141207]
[1673265953367,2.45438233,17260.0,17259.0,0.09141207]
[1673265953586,2.0206391,17260.0,17259.0,0.09141207]
[1673265954364,2.45443378,17260.0,17259.0,0.09141207]
[1673265955370,2.0206391,17260.0,17259.0,0.09141207]
[1673265962202,2.53970755,17260.0,17259.0,0.09141207]
[1673265965202,2.0206391,17260.0,17259.0,0.09141207]
[1673265965981,3.11908155,17260.0,17259.0,0.09141207]
[1673265968654,3.11908155,17260.0,17259.0,0.09133845]
[1673265970702,3.11908155,17260.0,17259.0,0.09073115]
[1673265971461,3.11908155,17260.0,17259.0,0.09012385]
[1673265972673,3.11908155,17260.0,17259.0,0.08951655]
[1673265973397,1.7206391,17260.0,17259.0,0.08773017]
[1673265974173,1.3580891,17260.0,17259.0,0.08773017]
[1673265974421,1.3580891,17260.0,17259.0,0.08482878]
[1673265974422,1.79218003,17260.0,17259.0,0.08482878]
[1673265974660,1.3580891,17260.0,17259.0,0.08482878]
[1673265974898,1.9374631,17260.0,17259.0,0.08482878]
[1673265975152,2.2374631,17260.0,17259.0,0.08482878]
[1673265975390,2.6000131,17260.0,17259.0,0.0830329]
[1673265976626,2.6000131,17260.0,17259.0,0.08284847]
[1673265977635,2.6000131,17260.0,17259.0,0.08120909]
[1673265977927,2.53970755,17260.0,17259.0,0.08120909]
[1673265978194,2.0206391,17260.0,17259.0,0.08120909]
[1673265978437,2.53970755,17260.0,17259.0,0.07880105]
[1673265979459,3.11908155,17260.0,17259.0,0.07861641]
[1673265980429,3.11908155,17260.0,17259.0,0.07697564]
[1673265981184,2.6000131,17260.0,17259.0,0.07697564]
[1673265981688,2.6000131,17260.0,17259.0,0.07679108]
[1673265982430,2.6000131,17260.0,17259.0,0.07515078]
[1673265982678,3.11908155,17260.0,17259.0,0.07515078]
[1673265984425,3.11908155,17260.0,17259.0,0.07293672]
[1673265985418,3.11908155,17260.0,17259.0,0.07129813]
[1673265986443,3.11908155,17260.0,17259.0,0.07111518]
[1673265987417,3.11908155,17260.0,17259.0,0.06888748]
[1673265988617,3.11908155,17260.0,17259.0,0.06870618]
[1673265989618,3.11908155,17260.0,17259.0,0.06580479]
[1673265990591,3.11908155,17260.0,17259.0,0.0629034]
[1673265991538,3.11908155,17260.0,17259.0,0.06050887]
[1673265992518,3.11908155,17260.0,17259.0,0.06032987]
[1673265993484,3.11908155,17260.0,17259.0,0.05811697]
[1673265994504,3.11908155,17260.0,17259.0,0.05649793]
[1673265995491,3.11908155,17260.0,17259.0,0.05631888]
[1673265996496,3.11908155,17260.0,17259.0,0.05468929]
[1673265998215,3.11928155,17260.0,17259.0,0.05468929]
[1673265998465,3.11928155,17260.0,17259.0,0.05289638]
[1673265999475,3.11928155,17260.0,17259.0,0.05069335]
[1673266001441,3.11928155,17260.0,17259.0,0.04848258]
[1673266002419,3.11928155,17260.0,17259.0,0.04669203]
[1673266003422,3.11928155,17260.0,17259.0,0.04651318]
[1673266003655,3.31859476,17260.0,17259.0,0.04651318]
[1673266004639,2.95604476,17260.0,17259.0,0.04428116]
[1673266004885,3.31859476,17260.0,17259.0,0.04428116]
[1673266005359,3.31859476,17260.0,17259.0,0.04205513]
[1673266007413,3.31859476,17260.0,17259.0,0.04187634]
[1673266008436,3.31859476,17260.0,17259.0,0.03964451]
[1673266009400,3.31859476,17260.0,17259.0,0.03903721]
[1673266010398,3.31859476,17260.0,17259.0,0.0385745]
[1673266011457,3.31859476,17260.0,17259.0,0.03805654]
[1673266012511,3.31859476,17260.0,17259.0,0.03753858]
[1673266013569,3.31859476,17260.0,17259.0,0.03693128]
[1673266014598,3.31859476,17260.0,17259.0,0.03632398]
[1673266015614,2.95604476,17260.0,17259.0,0.03614506]
[1673266016631,2.95604476,17260.0,17259.0,0.03553776]
[1673266017402,2.95604476,17260.0,17259.0,0.03493046]
[1673266018680,2.95604476,17260.0,17259.0,0.03475145]
[1673266019164,2.43697631,17260.0,17259.0,0.03475145]
[1673266019405,2.79952631,17260.0,17259.0,0.03475145]
[1673266019639,2.79952631,17260.0,17259.0,0.03414415]
[1673266019898,2.43697631,17260.0,17259.0,0.03414415]
[1673266020357,2.13697631,17260.0,17259.0,0.03414415]
[1673266020612,2.13697631,17260.0,17259.0,0.03396504]
[1673266020860,2.43697631,17260.0,17259.0,0.03396504]
[1673266021628,2.79952631,17260.0,17259.0,0.0323202]
[1673266021878,2.49952631,17260.0,17259.0,0.0293692]
[1673266022121,2.13697631,17260.0,17259.0,0.0293692]
[1673266022372,2.43697631,17260.0,17259.0,0.0293692]
[1673266022610,2.43697631,17260.0,17259.0,0.02772482]
[1673266023682,2.43697631,17260.0,17259.0,0.02609174]
[1673266023899,3.31859476,17260.0,17259.0,0.02609174]